bitfinex-derivatives/quotes_BTCF0:USTF0_20210409
["timestamp","ask_amount","ask_price","bid_price","bid_amount"]
[1617994241881,4.75225015,58374.0,58373.0,0.27]
[1617994245381,4.24575105,58374.0,58373.0,0.27]
[1617994245781,4.75265351,58374.0,58373.0,0.27]
[1617994247282,4.75265351,58374.0,58373.0,0.57506526]
[1617994248384,4.24575105,58374.0,58373.0,0.57506526]
[1617994249485,1.40459759,58374.0,58373.0,0.57506526]
[1617994249786,1.40459759,58374.0,58373.0,3.14946526]
[1617994249787,1.31610794,58374.0,58373.0,3.14946526]
[1617994250085,1.40780965,58374.0,58373.0,3.14946526]
[1617994252191,1.40780965,58374.0,58373.0,0.57506526]
[1617994252590,4.97400965,58374.0,58373.0,0.57506526]
[1617994252991,5.2186596,58374.0,58373.0,0.57506526]
[1617994263212,4.71141306,58374.0,58373.0,0.57506526]
[1617994263412,5.21899165,58374.0,58373.0,0.57506526]
[1617994263711,4.71141306,58374.0,58373.0,0.57506526]
[1617994264511,5.21908311,58374.0,58373.0,0.57506526]
[1617994267817,1.65288311,58374.0,58373.0,0.57506526]
[1617994268217,1.40823316,58374.0,58373.0,4.04936526]
[1617994268622,1.40823316,58374.0,58373.0,0.57506526]
[1617994270523,4.74543316,58374.0,58373.0,0.57506526]
[1617994270922,4.99040627,58374.0,58373.0,0.57506526]
[1617994271523,3.3372,58374.0,58373.0,0.27]
[1617994271823,4.65772534,58374.0,58373.0,0.57533195]
[1617994272024,4.65772534,58374.0,58373.0,0.94172808]
[1617994276329,4.65772534,58374.0,58373.0,0.57533195]
[1617994276537,4.65772534,58374.0,58373.0,0.94188383]
[1617994276738,4.65772534,58374.0,58373.0,0.57533195]
[1617994277229,4.65772534,58374.0,58373.0,0.94188422]
[1617994280939,4.76498189,58374.0,58373.0,1.04914077]
[1617994292156,4.86327189,58374.0,58373.0,1.04914077]
[1617994293057,4.86327189,58374.0,58373.0,0.74380882]
[1617994293058,4.35539315,58374.0,58373.0,0.74380882]
[1617994293259,3.54274655,58374.0,58373.0,0.37725655]
[1617994293759,4.86633736,58374.0,58373.0,1.04945843]
[1617994294560,4.86633736,58374.0,58373.0,1.11060733]
[1617994298065,1.52913736,58374.0,58373.0,1.11060733]
[1617994298267,1.43084736,58374.0,58373.0,1.11060733]
[1617994298466,1.43084736,58374.0,58373.0,3.70640733]
[1617994299075,1.52527707,58374.0,58373.0,3.70640733]
[1617994299266,1.01621934,58374.0,58373.0,3.70640733]
[1617994299467,1.01621934,58374.0,58373.0,1.11060733]
[1617994299666,4.43761934,58374.0,58373.0,1.11060733]
[1617994300067,4.68498689,58374.0,58373.0,1.11060733]
[1617994309878,5.19428927,58374.0,58373.0,1.11060733]
[1617994314085,4.68498689,58374.0,58373.0,1.11060733]
[1617994314287,1.26358689,58374.0,58373.0,1.11060733]
[1617994314487,1.01621934,58374.0,58373.0,1.11060733]
[1617994314990,1.01621934,58374.0,58373.0,4.38370733]
[1617994315392,1.52555573,58374.0,58373.0,4.38370733]
[1617994319800,1.57745573,58374.0,58373.0,4.38370733]
[1617994319999,1.52555573,58374.0,58373.0,4.38370733]
[1617994324116,1.41829918,58374.0,58373.0,5.88370733]
[1617994324331,1.41829918,58374.0,58373.0,6.01663733]
[1617994324503,0.81453308,58374.0,58373.0,6.46358779]
[1617994325106,0.81453308,58374.0,58373.0,7.46358779]
[1617994325504,0.36655007,58374.0,58373.0,7.46358779]
[1617994326004,0.36655007,58374.0,58373.0,3.19048779]
[1617994331309,0.36655007,58374.0,58373.0,4.19048779]
[1617994331607,0.36655007,58374.0,58373.0,3.19048779]
[1617994332208,0.45416118,58374.0,58373.0,3.19048779]
[1617994332408,0.44790468,58377.0,58374.0,0.63344993]
[1617994332608,0.44790468,58377.0,58376.0,2.9265]
[1617994332908,0.44786784,58378.0,58376.0,3.67693082]
[1617994333110,0.06114148,58377.0,58376.0,4.09978453]
[1617994333309,0.44786784,58378.0,58377.0,0.90326497]
[1617994333710,0.44786784,58378.0,58377.0,1.17326497]
[1617994334710,0.06114162,58382.0,58377.0,1.17326497]
[1617994334711,0.44780829,58379.0,58377.0,1.17326497]
[1617994335112,0.44780829,58379.0,58378.0,0.81128652]
[1617994335512,0.44780829,58379.0,58378.0,1.08128652]
[1617994335915,0.49860829,58379.0,58378.0,1.08128652]
[1617994336113,0.50894979,58379.0,58378.0,1.08128652]
[1617994336413,0.44780829,58379.0,58378.0,1.08128652]
[1617994337214,0.44772489,58380.0,58378.0,1.08128652]
[1617994337414,0.44772489,58380.0,58379.0,0.36519163]
[1617994337915,0.44772489,58380.0,58379.0,0.63519163]
[1617994338319,0.44772489,58380.0,58379.0,1.08108012]
[1617994339117,0.44772489,58380.0,58379.0,1.18833667]
[1617994339718,0.44767394,58381.0,58379.0,1.18833667]
[1617994339918,0.50881655,58380.0,58379.0,1.18833667]
[1617994340118,0.44764825,58381.0,58379.0,1.18833667]
[1617994340318,0.44764825,58381.0,58380.0,0.36511494]
[1617994340719,0.44764825,58381.0,58380.0,0.63511494]
[1617994344024,0.44764825,58381.0,58380.0,4.27761494]
[1617994344425,0.44764825,58381.0,58380.0,5.77761494]
[1617994345330,0.50866231,58383.0,58380.0,6.22394623]
[1617994345526,0.50853296,58389.0,58385.0,0.01753107]
[1617994345726,0.50853296,58389.0,58385.0,0.16256107]
[1617994346029,0.50853296,58389.0,58386.0,0.27]
[1617994346228,0.50849504,58391.0,58388.0,0.30428221]
[1617994346627,0.50849504,58391.0,58385.0,0.16256107]
[1617994346628,0.50849504,58391.0,58390.0,0.30426686]
[1617994347031,0.50849504,58391.0,58390.0,0.31426686]
[1617994347234,0.50849504,58391.0,58390.0,0.42152341]
[1617994348029,3.15929504,58391.0,58390.0,0.42152341]
[1617994348331,3.15929504,58391.0,58390.0,0.11725655]
[1617994348532,3.31823375,58391.0,58390.0,0.11725655]
[1617994350832,3.31823375,58391.0,58390.0,0.42203659]
[1617994351733,3.31823375,58391.0,58390.0,0.43956766]
[1617994351935,2.80973871,58391.0,58390.0,0.43956766]
[1617994352938,3.31813669,58391.0,58390.0,0.13478762]
[1617994355238,0.66733669,58391.0,58390.0,0.13478762]
[1617994355640,0.50839798,58391.0,58390.0,3.36388762]
[1617994357642,0.87441093,58391.0,58390.0,3.36388762]
[1617994359344,0.85687986,58391.0,58390.0,3.34635655]
[1617994359744,0.90817986,58391.0,58390.0,3.34635655]
[1617994359944,0.85687986,58391.0,58390.0,3.34635655]
[1617994360546,0.36601295,58391.0,58390.0,3.34635655]
[1617994362349,0.36601295,58391.0,58390.0,0.11725655]
[1617994362751,3.19061295,58391.0,58390.0,0.11725655]
[1617994363152,3.45848383,58391.0,58390.0,0.11725655]
[1617994365756,3.90577819,58391.0,58390.0,0.11725655]
[1617994369497,3.90577819,58391.0,58390.0,0.01]
[1617994369658,4.90577819,58391.0,58390.0,0.01]
[1617994370259,4.90577819,58391.0,58387.0,0.27]
[1617994370559,2.8246,58391.0,58390.0,0.01]
[1617994370859,2.8246,58391.0,58383.0,0.30493913]
[1617994370860,4.6377714,58391.0,58388.0,0.27]
[1617994371059,0.81316841,58389.0,58388.0,0.27]
[1617994371259,0.10725655,58385.0,58383.0,0.30493913]
[1617994371460,0.23748655,58385.0,58383.0,0.30493913]
[1617994371660,0.87429936,58384.0,58383.0,0.30493913]
[1617994372059,0.87429936,58384.0,58383.0,0.57493913]
[1617994372261,0.87429936,58384.0,58383.0,0.27]
[1617994372659,0.87429936,58384.0,58382.0,0.30497534]
[1617994372860,0.23748655,58385.0,58383.0,0.57499225]
[1617994373260,0.23748655,58385.0,58384.0,0.10725655]
[1617994373460,0.23748655,58385.0,58384.0,0.36725655]
[1617994373660,0.6846645,58385.0,58384.0,0.36725655]
[1617994374261,0.6846645,58385.0,58384.0,0.67226193]
[1617994374463,1.19291898,58385.0,58384.0,0.67226193]
[1617994376770,0.6846645,58385.0,58384.0,0.67226193]
[1617994377370,1.1930106,58385.0,58384.0,0.67226193]
[1617994380073,2.1930106,58385.0,58384.0,0.67226193]
[1617994380776,1.1930106,58385.0,58384.0,0.67226193]
[1617994381677,0.6846645,58385.0,58384.0,0.67226193]
[1617994382080,0.6846645,58385.0,58384.0,1.03848073]
[1617994382478,0.23748655,58385.0,58384.0,0.36725655]
[1617994382677,0.23748655,58385.0,58384.0,1.03865359]
[1617994382678,0.68496737,58385.0,58384.0,1.03865359]
[1617994384078,1.19360586,58385.0,58384.0,1.03865359]
[1617994385584,0.74612504,58385.0,58384.0,1.03865359]
[1617994385779,1.19330658,58385.0,58384.0,1.03865359]
[1617994386982,1.19330658,58385.0,58384.0,0.67243702]
[1617994387986,0.74612504,58385.0,58384.0,1.03876313]
[1617994388286,1.74612504,58385.0,58384.0,0.67243702]
[1617994388486,2.19292492,58385.0,58384.0,0.67243702]
[1617994389087,1.19292492,58385.0,58384.0,0.67243702]
[1617994391389,1.19292492,58385.0,58384.0,1.0388065]
[1617994392694,1.19292492,58385.0,58384.0,0.67243702]
[1617994393695,2.19292492,58385.0,58384.0,0.67243702]
[1617994395697,1.19292492,58385.0,58384.0,0.67243702]
[1617994396097,2.19292492,58385.0,58384.0,0.67243702]
[1617994397197,1.19292492,58385.0,58384.0,0.67243702]
[1617994397496,2.19292492,58385.0,58384.0,0.67243702]
[1617994398798,1.19292492,58385.0,58384.0,0.67243702]
[1617994399599,2.19292492,58385.0,58384.0,0.67243702]
[1617994403108,5.25002492,58385.0,58384.0,0.67243702]
[1617994403609,5.46265752,58385.0,58384.0,0.67243702]
[1617994403910,5.41095752,58385.0,58384.0,0.65493702]
[1617994406111,5.41095752,58385.0,58384.0,0.56518047]
[1617994406318,5.41095752,58385.0,58384.0,0.26]
[1617994406521,5.61095752,58385.0,58383.0,0.30525657]
[1617994406752,5.61095752,58385.0,58382.0,0.30526]
[1617994406967,1.44945157,58384.0,58380.0,0.30524097]
[1617994407114,0.2,58383.0,58380.0,0.30524097]
[1617994407316,0.95529522,58381.0,58377.0,0.30524707]
[1617994407514,0.10725655,58378.0,58377.0,0.30524707]
[1617994407716,0.30725655,58378.0,58365.0,0.10725655]
[1617994407926,0.30725655,58378.0,58375.0,0.30526855]
[1617994408317,0.95474033,58376.0,58374.0,0.30527253]
[1617994408619,0.2,58375.0,58374.0,0.30527253]
[1617994408918,1.15457504,58375.0,58373.0,0.30527539]
[1617994409217,1.0,58374.0,58372.0,0.30519277]
[1617994409516,1.15457504,58375.0,58372.0,0.30519277]
[1617994409517,2.15413893,58373.0,58372.0,0.30519277]
[1617994409717,2.24769893,58373.0,58372.0,0.30519277]
[1617994409916,2.24769893,58373.0,58371.0,0.30512346]
[1617994410216,1.80107423,58373.0,58372.0,0.30511685]
[1617994410516,2.24773616,58373.0,58372.0,0.30511685]
[1617994410718,1.74022193,58373.0,58372.0,0.30511685]
[1617994411622,4.76842193,58373.0,58372.0,0.30511685]
[1617994411917,4.95249608,58373.0,58371.0,2.80432058]
[1617994412117,0.63066999,58372.0,58371.0,2.80432058]
[1617994413521,0.73792654,58372.0,58371.0,2.80432058]
[1617994414021,1.73792654,58372.0,58371.0,2.80432058]
[1617994414222,1.84184654,58372.0,58371.0,2.80432058]
[1617994415725,1.84184654,58372.0,58371.0,0.30502058]
[1617994416028,4.55267579,58372.0,58371.0,0.30502058]
[1617994416627,4.55267579,58372.0,58365.0,0.10725655]
[1617994416628,4.73696148,58372.0,58370.0,0.30496734]
[1617994417028,1.13760909,58371.0,58367.0,0.30492221]
[1617994417727,0.44628505,58368.0,58367.0,0.30492221]
[1617994418129,1.44628505,58368.0,58367.0,0.30492221]
[1617994418434,0.44628505,58368.0,58366.0,0.30489336]
[1617994418631,1.44628505,58368.0,58366.0,0.30489336]
[1617994418931,0.44611728,58367.0,58364.0,0.3658696]
[1617994419529,0.10725655,58365.0,58364.0,0.3658696]
[1617994419929,1.10725655,58365.0,58364.0,3.6554696]
[1617994420129,1.10725655,58365.0,58364.0,3.96032444]
[1617994420530,1.10725655,58365.0,58364.0,3.9602853]
[1617994421631,1.10725655,58365.0,58364.0,4.06754185]
[1617994422132,0.10725655,58365.0,58364.0,4.06754185]
[1617994422631,0.10725655,58365.0,58364.0,1.04794185]
[1617994423032,4.59835655,58365.0,58364.0,0.9406853]
[1617994423233,5.40918954,58365.0,58364.0,0.57485484]
[1617994423633,5.40918954,58365.0,58364.0,0.27]
[1617994423634,5.60751201,58365.0,58364.0,0.27]
[1617994424033,5.60751201,58365.0,58363.0,0.30483874]
[1617994424333,1.070126,58364.0,58363.0,0.30483874]
[1617994424633,1.070126,58364.0,58363.0,0.57483874]
[1617994424834,0.87183152,58364.0,58363.0,0.57483874]
[1617994425033,4.16193152,58364.0,58363.0,0.57483874]
[1617994425333,4.16189112,58364.0,58363.0,0.57483874]
[1617994425634,5.16189112,58364.0,58363.0,0.57483874]
[1617994426033,5.16189112,58364.0,58363.0,0.27]
[1617994426435,5.16189112,58364.0,58362.0,0.30473403]
[1617994426634,5.16189112,58364.0,58363.0,0.27]
[1617994427034,4.16189112,58364.0,58363.0,0.27]
[1617994427234,4.16189112,58364.0,58362.0,0.01]
[1617994427534,5.16189112,58364.0,58363.0,0.27]
[1617994427734,4.2901,58364.0,58363.0,0.27]
[1617994427935,4.2901,58364.0,58362.0,0.57471333]
[1617994428135,4.73586578,58364.0,58363.0,0.27]
[1617994428336,5.10054905,58364.0,58363.0,0.27]
[1617994428835,5.10054905,58364.0,58362.0,0.01]
[1617994429036,5.10054905,58364.0,58363.0,0.26]
[1617994429235,5.10054905,58364.0,58361.0,0.30470032]
[1617994429436,0.81044905,58364.0,58362.0,0.30468926]
[1617994429635,0.81028203,58362.0,58361.0,0.30468918]
[1617994429835,1.01028203,58362.0,58361.0,0.30468918]
[1617994430036,1.01028203,58362.0,58356.0,0.30464713]
[1617994430235,2.01028203,58362.0,58356.0,0.30464713]
[1617994430437,0.8093033,58357.0,58354.0,0.30465003]
[1617994430638,0.9421333,58357.0,58354.0,0.30465003]
[1617994430836,0.3641534,58355.0,58354.0,0.27]
[1617994431139,0.3641534,58355.0,58349.0,0.01]
[1617994431140,3.8360518,58355.0,58352.0,0.30458352]
[1617994431340,4.8360518,58355.0,58352.0,0.30458352]
[1617994431540,4.8360518,58355.0,58354.0,0.27]
[1617994431541,1.0,58355.0,58354.0,0.27]
[1617994431838,4.38977309,58355.0,58353.0,0.25]
[1617994432038,4.38977309,58355.0,58354.0,0.26]
[1617994432439,0.86987132,58354.0,58351.0,0.01]
[1617994432739,0.86987132,58354.0,58349.0,0.30459842]
[1617994432740,0.36385921,58352.0,58349.0,0.30459842]
[1617994432939,3.93585921,58352.0,58351.0,0.27]
[1617994433138,3.93585921,58352.0,58349.0,0.57459842]
[1617994433340,0.36376173,58350.0,58349.0,0.30459842]
[1617994433740,1.36376173,58350.0,58349.0,0.27]
[1617994434044,1.42493777,58350.0,58349.0,0.27]
[1617994434841,1.42493777,58350.0,58349.0,0.2584]
[1617994441150,4.41003777,58350.0,58349.0,0.2584]
[1617994441955,4.41003777,58350.0,58349.0,0.2432]
[1617994446556,3.9851,58350.0,58349.0,0.2432]
[1617994446757,4.34955176,58350.0,58349.0,0.2432]
[1617994447759,3.9851,58350.0,58349.0,0.2432]
[1617994453567,4.34945604,58350.0,58349.0,0.2432]
[1617994455468,3.34945604,58350.0,58349.0,0.2432]
[1617994455670,3.79444315,58350.0,58349.0,0.2432]
[1617994455869,4.79444315,58350.0,58349.0,0.2432]
[1617994456371,4.99444315,58350.0,58349.0,0.2432]
[1617994456669,5.49952718,58350.0,58349.0,0.2432]
[1617994457270,5.29952718,58350.0,58349.0,0.2432]
[1617994457571,5.29952718,58350.0,58349.0,0.2261]
[1617994458169,4.29952718,58350.0,58349.0,0.2261]
[1617994458469,5.29952718,58350.0,58349.0,0.2261]
[1617994459069,5.49952718,58350.0,58349.0,0.209]
[1617994459269,4.55122718,58350.0,58335.0,0.10725655]
[1617994459571,2.56612718,58350.0,58335.0,0.10725655]
[1617994459769,0.10725655,58336.0,58335.0,0.10725655]
[1617994459970,0.24817655,58336.0,58335.0,0.10725655]
[1617994460171,0.24817655,58336.0,58335.0,0.37725655]
[1617994460470,0.67281899,58336.0,58335.0,0.37725655]
[1617994460770,1.67281899,58336.0,58335.0,0.37725655]
[1617994462374,1.67281899,58336.0,58335.0,0.27]
[1617994462876,3.0824,58329.0,58328.0,0.27]
[1617994463175,3.0824,58329.0,58325.0,0.30406143]
[1617994463373,3.0824,58329.0,58328.0,0.27]
[1617994463776,3.18965655,58329.0,58326.0,0.01]
[1617994463975,3.18965655,58329.0,58328.0,0.27]
[1617994464410,3.18965655,58329.0,58324.0,0.2291]
[1617994464411,1.10725655,58329.0,58326.0,0.27]
[1617994464622,3.7022,58327.0,58324.0,0.2291]
[1617994464778,3.7022,58327.0,58324.0,0.2185]
[1617994464779,0.36308232,58325.0,58324.0,0.2185]
[1617994465015,0.56308232,58325.0,58324.0,0.1745]
[1617994465277,1.62428843,58325.0,58314.0,0.36497911]
[1617994465478,1.5,58324.0,58314.0,0.36497911]
[1617994465775,2.7734,58315.0,58314.0,0.36497911]
[1617994465957,5.58065655,58315.0,58305.0,0.364831]
[1617994466176,3.08065655,58315.0,58305.0,0.048931]
[1617994466379,1.0,58306.0,58297.0,0.3649401]
[1617994466577,2.5351,58298.0,58297.0,0.3649401]
[1617994466778,2.5351,58298.0,58287.0,3.10622515]
[1617994466779,3.5351,58298.0,58287.0,3.0144]
[1617994467278,0.01014822,58293.0,58287.0,3.0144]
[1617994467578,0.10549822,58293.0,58288.0,0.27]
[1617994467778,3.20275655,58289.0,58288.0,0.27]
[1617994468084,0.10725655,58289.0,58288.0,2.9121]
[1617994468290,0.01013529,58295.0,58278.0,1.5]
[1617994468502,0.01013529,58295.0,58294.0,3.032]
[1617994468690,0.01013941,58297.0,58294.0,3.16934]
[1617994468881,0.01013941,58297.0,58294.0,4.93934]
[1617994469114,0.01014236,58299.0,58294.0,1.90734]
[1617994469300,0.01014236,58299.0,58298.0,3.0313]
[1617994469481,0.0101445,58300.0,58298.0,4.5313]
[1617994469677,0.0101445,58300.0,58298.0,4.8013]
[1617994469879,0.0101445,58300.0,58299.0,0.10725655]
[1617994470179,0.01014262,58305.0,58299.0,1.60725655]
[1617994470379,0.01014262,58305.0,58299.0,1.87725655]
[1617994470582,0.0101506,58307.0,58299.0,1.87725655]
[1617994471480,0.10725655,58319.0,58299.0,1.87725655]
[1617994471481,0.0101567,58309.0,58299.0,1.87725655]
[1617994471782,0.01015319,58310.0,58308.0,0.10725655]
[1617994472181,0.06195319,58310.0,58309.0,0.27]
[1617994472482,0.10725655,58319.0,58309.0,0.27]
[1617994473184,1.0,58311.0,58309.0,0.27]
[1617994473582,1.0,58313.0,58309.0,0.27]
[1617994473782,1.10725655,58319.0,58309.0,0.37712]
[1617994473983,0.10725655,58312.0,58309.0,0.37712]
[1617994474282,0.10725655,58312.0,58311.0,3.3704]
[1617994474683,0.10725655,58312.0,58311.0,3.6404]
[1617994475185,0.10725655,58312.0,58311.0,0.27]
[1617994475586,0.10725655,58312.0,58310.0,0.27]
[1617994475986,0.10725655,58312.0,58311.0,0.27]
[1617994476186,0.10725655,58312.0,58309.0,0.10712]
[1617994476187,0.10725655,58312.0,58310.0,0.27]
[1617994476487,0.10725655,58312.0,58311.0,0.27]
[1617994476888,0.10725655,58312.0,58310.0,0.27]
[1617994477388,0.15865655,58312.0,58309.0,0.10712]
[1617994477587,0.15865655,58312.0,58308.0,0.10725655]
[1617994477588,0.15865655,58312.0,58310.0,0.27]
[1617994477988,0.15865655,58312.0,58309.0,0.27]
[1617994478188,1.0,58311.0,58309.0,0.27]
[1617994478391,1.0,58311.0,58308.0,0.10725655]
[1617994478590,1.0,58311.0,58310.0,0.2188]
[1617994478989,1.0,58311.0,58309.0,0.27]
[1617994479290,1.0,58311.0,58310.0,0.27]
[1617994479488,1.0,58311.0,58309.0,0.27]
[1617994479889,1.0,58311.0,58310.0,0.27]
[1617994480091,1.0,58311.0,58308.0,0.10725655]
[1617994480291,1.0,58310.0,58309.0,0.27]
[1617994480491,0.15865655,58312.0,58308.0,0.10725655]
[1617994480691,3.5835,58309.0,58308.0,0.10725655]
[1617994480995,3.5835,58309.0,58308.0,0.37725655]
[1617994481190,4.5835,58309.0,58308.0,0.37725655]
[1617994481391,4.5835,58309.0,58308.0,0.27]
[1617994481694,4.5835,58309.0,58290.0,3.0478]
[1617994481893,0.0518,58308.0,58295.0,0.10725655]
[1617994482095,3.2996,58298.0,58295.0,0.10725655]
[1617994482293,3.43818,58298.0,58296.0,0.01]
[1617994483091,1.0,58297.0,58296.0,0.01]
[1617994483801,1.0,58297.0,58296.0,3.2786]
[1617994483993,1.10725655,58297.0,58296.0,3.2786]
[1617994484193,1.10725655,58297.0,58296.0,0.01]
[1617994484394,3.58395655,58297.0,58296.0,0.01]
[1617994485295,2.58395655,58297.0,58296.0,0.01]
[1617994486100,0.10725655,58297.0,58296.0,0.01]
[1617994487400,0.24147655,58297.0,58296.0,0.01]
[1617994488899,0.10725655,58297.0,58296.0,0.01]
[1617994491820,3.0687,58298.0,58296.0,0.01]
[1617994492798,0.10725655,58308.0,58296.0,0.01]
[1617994492958,0.10725655,58308.0,58305.0,3.4303]
[1617994493404,0.10725655,58308.0,58306.0,0.27]
[1617994493606,0.11737293,58308.0,58306.0,0.27]
[1617994494115,0.11737293,58308.0,58307.0,0.10725655]
[1617994494504,0.11737293,58308.0,58307.0,0.37725655]
[1617994495232,1.11737293,58308.0,58307.0,0.37725655]
[1617994495406,1.10725655,58308.0,58307.0,0.37725655]
[1617994495606,1.10725655,58308.0,58307.0,0.10725655]
[1617994495806,3.2216,58283.0,58282.0,0.36345871]
[1617994496081,3.33033,58283.0,58282.0,0.47071526]
[1617994496409,3.33033,58283.0,58282.0,0.10725655]
[1617994496639,0.10873,58283.0,58282.0,0.37725655]
[1617994497210,3.16673,58283.0,58282.0,0.37725655]
[1617994499712,4.16673,58283.0,58282.0,0.37725655]
[1617994501218,4.16673,58283.0,58282.0,0.10725655]
[1617994501421,1.10873,58283.0,58282.0,0.10725655]
[1617994501815,1.11381549,58283.0,58282.0,0.10725655]
[1617994502716,1.10873,58283.0,58282.0,0.10725655]
[1617994502915,0.10873,58283.0,58282.0,0.10725655]
[1617994503115,1.10725655,58284.0,58282.0,0.10725655]
[1617994503316,0.10725655,58284.0,58282.0,0.10725655]
[1617994506020,0.0050814,58288.0,58282.0,0.10725655]
[1617994506725,0.00508193,58287.0,58282.0,0.10725655]
[1617994507023,0.0517,58286.0,58282.0,0.10725655]
[1617994507322,0.14086193,58287.0,58282.0,0.10725655]
[1617994508629,0.00508008,58283.0,58282.0,0.10725655]
[1617994508924,1.00508008,58283.0,58282.0,0.10725655]
[1617994509126,1.01005723,58283.0,58282.0,0.10725655]
[1617994509728,1.29890443,58283.0,58282.0,0.10725655]
[1617994510128,1.40616098,58283.0,58282.0,0.10725655]
[1617994510329,1.10725655,58283.0,58282.0,0.10725655]
[1617994510528,4.00395655,58283.0,58282.0,0.10725655]
[1617994510831,4.30283592,58283.0,58282.0,0.10725655]
[1617994511431,3.01401576,58283.0,58282.0,0.10725655]
[1617994511632,4.00395655,58283.0,58282.0,0.10725655]
[1617994512031,4.30291961,58283.0,58282.0,0.10725655]
[1617994512231,3.30291961,58283.0,58282.0,0.10725655]
[1617994512431,3.00395655,58283.0,58282.0,0.10725655]
[1617994512631,3.01402513,58283.0,58282.0,0.10725655]
[1617994513736,4.00395655,58283.0,58282.0,0.10725655]
[1617994514032,4.3032867,58283.0,58282.0,0.10725655]
[1617994514435,4.3546867,58283.0,58282.0,0.10725655]
[1617994514633,4.71400689,58283.0,58282.0,0.09155655]
[1617994514833,4.66260689,58283.0,58272.0,0.4945]
[1617994515233,3.66260689,58283.0,58272.0,0.4945]
[1617994515433,1.0,58273.0,58272.0,0.4945]
[1617994515733,1.12291,58273.0,58272.0,0.4945]
[1617994515937,1.12291,58273.0,58272.0,0.7645]
[1617994516135,4.39696655,58273.0,58272.0,0.87175655]
[1617994516436,3.39696655,58273.0,58272.0,0.87175655]
[1617994516735,3.40205678,58273.0,58272.0,0.87175655]
[1617994517037,0.23525678,58273.0,58272.0,3.64985655]
[1617994517235,1.23016655,58273.0,58272.0,3.64985655]
[1617994517436,1.235256,58273.0,58272.0,3.64985655]
[1617994517751,1.235256,58273.0,58272.0,0.87175655]
[1617994518143,4.348156,58273.0,58272.0,0.87175655]
[1617994518539,4.35314128,58273.0,58272.0,0.87175655]
[1617994518954,3.35314128,58273.0,58272.0,0.87175655]
[1617994519201,3.35314128,58273.0,58272.0,0.7645]
[1617994519469,4.64251993,58273.0,58272.0,0.7645]
[1617994520336,3.64251993,58273.0,58272.0,0.27]
[1617994520555,3.64251993,58273.0,58266.0,0.4881]
[1617994520838,4.64251993,58273.0,58266.0,0.4881]
[1617994521138,0.29928189,58268.0,58266.0,0.4881]
[1617994521337,0.29928189,58268.0,58264.0,0.035]
[1617994521538,3.34306655,58273.0,58264.0,0.035]
[1617994521539,1.65805747,58267.0,58264.0,0.035]
[1617994521937,1.0,58265.0,58264.0,0.035]
[1617994522139,1.76471091,58265.0,58264.0,0.035]
[1617994522538,2.44787931,58265.0,58264.0,0.035]
[1617994523140,2.44787931,58265.0,58264.0,0.0178]
[1617994526941,1.44787931,58265.0,58264.0,0.0178]
[1617994527143,2.44787931,58265.0,58264.0,0.0178]
[1617994527544,2.44787931,58265.0,58248.0,0.10725655]
[1617994527843,3.4647,58249.0,58248.0,0.10725655]
[1617994528047,3.57195655,58249.0,58248.0,0.10725655]
[1617994528248,3.57195655,58249.0,58248.0,0.37725655]
[1617994531247,3.57195655,58249.0,58248.0,1.87725655]
[1617994531647,0.00506827,58255.0,58248.0,1.87725655]
[1617994531946,0.01003489,58257.0,58248.0,1.87725655]
[1617994531947,0.00506797,58256.0,58255.0,2.8618]
[1617994532148,0.10725655,58257.0,58255.0,2.96905655]
[1617994532347,0.10725655,58257.0,58256.0,0.27]
[1617994532748,0.10725655,58257.0,58255.0,2.96905655]
[1617994532949,0.10725655,58257.0,58256.0,0.27]
[1617994533550,3.74705655,58257.0,58256.0,0.27]
[1617994534455,3.75212412,58257.0,58256.0,0.27]
[1617994535056,4.04508351,58257.0,58256.0,0.27]
[1617994537957,4.04508351,58257.0,58243.0,0.27]
[1617994538159,4.04508351,58257.0,58256.0,0.37725655]
[1617994538557,4.04508351,58257.0,58256.0,0.10725655]
[1617994538758,3.75708603,58257.0,58256.0,0.36725655]
[1617994539175,3.75212164,58257.0,58256.0,0.36725655]
[1617994539659,3.74705655,58257.0,58256.0,0.36725655]
[1617994540262,0.10725655,58257.0,58256.0,0.36725655]
[1617994540964,0.11232373,58257.0,58256.0,0.36725655]
[1617994541778,0.10725655,58257.0,58256.0,0.36725655]
[1617994543367,0.11232317,58257.0,58256.0,0.36725655]
[1617994544170,3.11222317,58257.0,58256.0,0.36725655]
[1617994544673,3.10715655,58257.0,58256.0,0.36725655]
[1617994545272,3.11222346,58257.0,58256.0,0.36725655]
[1617994547073,3.24581346,58257.0,58256.0,0.36725655]
[1617994547275,3.24074655,58257.0,58256.0,0.36725655]
[1617994547575,3.24581489,58257.0,58256.0,0.36725655]
[1617994547778,3.24581489,58257.0,58256.0,0.26]
[1617994548176,3.24581489,58257.0,58247.0,1.5]
[1617994548177,3.24581489,58257.0,58253.0,0.10725655]
[1617994548478,0.24591489,58257.0,58256.0,0.27]
[1617994548776,2.77561489,58257.0,58254.0,0.01]
[1617994549077,2.64202489,58257.0,58256.0,0.27]
[1617994549280,2.64202489,58257.0,58254.0,0.27]
[1617994549477,0.00506945,58256.0,58254.0,0.27]
[1617994551180,0.00507008,58255.0,58254.0,0.27]
[1617994551379,0.01004076,58256.0,58254.0,0.27]
[1617994551879,0.01004318,58255.0,58254.0,0.27]
[1617994553479,0.01004318,58255.0,58254.0,1.77]
[1617994553680,0.00507208,58255.0,58254.0,1.77]
[1617994554081,0.01004947,58255.0,58254.0,1.77]
[1617994554482,0.29876228,58255.0,58254.0,1.77]
[1617994555405,0.29876228,58255.0,58254.0,2.77]
[1617994555588,0.0050797,58256.0,58254.0,2.77]
[1617994555782,0.0050797,58256.0,58254.0,1.88618]
[1617994555982,0.2,58304.0,58254.0,1.88618]
[1617994556282,0.69731345,58289.0,58270.0,0.10725655]
[1617994556482,0.49856563,58272.0,58270.0,0.20147655]
[1617994556683,0.49856563,58272.0,58271.0,3.7299]
[1617994557020,0.49857051,58273.0,58271.0,5.2299]
[1617994557385,0.61267943,58283.0,58271.0,5.2299]
[1617994557386,1.09664965,58272.0,58271.0,5.2299]
[1617994559089,0.65800972,58272.0,58271.0,5.2299]
[1617994565193,0.65800972,58272.0,58271.0,1.77]
[1617994565393,3.80450972,58272.0,58271.0,1.77]
[1617994565593,4.049534,58272.0,58271.0,1.77]
[1617994567596,0.903034,58272.0,58271.0,1.77]
[1617994567896,0.65800972,58272.0,58271.0,1.77]
[1617994568196,1.09709839,58272.0,58271.0,4.6925]
[1617994568796,1.34212568,58272.0,58271.0,4.6925]